lending/lending_fUSD_20240131
["ID","MTS","AMOUNT","RATE_DAILY","PERIOD"]
[313058505,1706700639438,-7352.27100488,0.00035075,4]
[313058507,1706700639450,-1448.76423296,0.00035075,4]
[313058509,1706700639459,-158.06,0.00035083,2]
[313058511,1706700639468,-158.06,0.00035307,2]
[313058513,1706700639477,-564.99356077,0.00035337,4]
[313058515,1706700639486,-155.20593586,0.00035337,4]
[313058517,1706700639495,-158.06,0.00035531,2]
[313058519,1706700639505,-158.06,0.00035755,2]
[313058521,1706700639514,-158.06,0.00035979,2]
[313058523,1706700639523,-683.81288083,0.00036102,2]
[313058525,1706700639535,-1892.5568582,0.00036102,2]
[313058624,1706700640683,-269.78455022,0.00036102,2]
[313058633,1706700640757,-18.84571075,0.00036102,2]
[313058635,1706700640766,-1000.0,0.000362,2]
[313058637,1706700640775,-158.06,0.00036203,2]
[313058639,1706700640785,-1601.94686061,0.00036319,4]
[313058641,1706700640794,-311.17,0.0003662,2]
[313058643,1706700640803,-1374.35712479,0.00037541,2]
[313058645,1706700640813,-3512.0,0.00037593,2]
[313058647,1706700640823,-1327.40694317,0.00037807,2]
[313058649,1706700640831,-176.76,0.0003789,2]
[313058651,1706700640840,-500.0,0.0003789,2]
[313058653,1706700640849,-119.82334135,0.00037894,2]
[313058655,1706700640861,-30.17665865,0.00037894,2]
[313058657,1706700640870,-150.0,0.00037894,2]
[313058659,1706700640880,-150.0,0.00037904,2]
[313058661,1706700640889,-112.70869573,0.00037936,2]
[313058663,1706700640901,-501.7001713,0.00037936,2]
[313058666,1706700640912,-712.99807614,0.00037936,2]
[313058668,1706700640921,-1374.35712479,0.00037988,2]
[313058670,1706700640930,-680.0,0.00037999,2]
[313058672,1706700640939,-153.1,0.00038,3]
[313058674,1706700640948,-1257.2742,0.00038145,2]
[313058676,1706700640957,-245.57059907,0.00038145,2]
[313058737,1706700641523,-264.46900093,0.00038145,2]
[313058739,1706700641533,-233.70438317,0.00038145,2]
[313058743,1706700641566,-790.07358814,0.00038145,2]
[313058746,1706700641578,-1807.65857259,0.00038145,2]
[313058757,1706700641679,-355.32,0.00038145,2]
[313058760,1706700641690,-384.41223379,0.00038145,2]
[313058917,1706700643089,-1432.99391161,0.00028749,2]
[313058922,1706700643144,-687.42428315,0.00028749,2]
[313058923,1706700643157,-1718.83809766,0.00028749,2]
[313058924,1706700643166,-406.63400339,0.00036101,2]
[313058925,1706700643180,-488.35353847,0.00036101,4]
[313058926,1706700643189,-26913.70892231,0.00038145,2]
[313058927,1706700643199,-1469.44592649,0.00038214,4]
[313058928,1706700643208,-320.0,0.00038224,2]
[313058929,1706700643218,-2954.57416026,0.00038234,4]
[313058930,1706700643227,-460.51233359,0.00038234,4]
[313058931,1706700643236,-2500.0,0.00038235,2]
[313058932,1706700643246,-27204.87210656,0.00038245,2]
[313058933,1706700643267,-344.1,0.00038245,2]
[313058934,1706700643278,-812.85504751,0.00038245,2]
[313058950,1706700643522,-861.16236143,0.00038245,2]
[313058952,1706700643533,-3391.63822268,0.00038245,2]
[313058968,1706700643676,-6664.72342439,0.00038245,2]
[313058969,1706700643692,-500.0,0.00038245,2]
[313058970,1706700643703,-1648.37425309,0.00038245,2]
[313058971,1706700643715,-955.59576504,0.00038245,2]
[313058972,1706700643734,-516.68256542,0.00038245,2]
[313058973,1706700643745,-1323.33603651,0.00038245,2]
[313058976,1706700643768,-457.32256415,0.00038245,2]
[313059004,1706700646236,-1303.97883151,0.00036101,4]
[313059005,1706700646246,-26.04116844,0.00036101,4]
[313059006,1706700646292,-631.69899155,0.00036101,4]
[313059007,1706700646302,-3940.8261784,0.00038244,4]
[313059008,1706700646314,-2289.8,0.00038244,4]
[313059009,1706700646350,-916.65069652,0.00038244,4]
[313059010,1706700646361,-2452.6972002,0.00038244,4]
[313059011,1706700646407,-3486.32936215,0.00038244,4]
[313059012,1706700646417,-1069.87705322,0.00038245,2]
[313059013,1706700646426,-3772.7439,0.00038245,10]
[313059014,1706700646435,-361.93589285,0.00038246,8]
[313059015,1706700646445,-5000.0,0.00038256,3]
[313059016,1706700646454,-522.6083542,0.00038256,2]
[313059017,1706700646463,-1707.37016639,0.00038333,3]
[313059018,1706700646476,-6377.6804141,0.00038333,3]
[313059019,1706700646485,-207.0,0.00038333,11]
[313059020,1706700646495,-5044.18060529,0.00038334,4]
[313059021,1706700646504,-551.29405049,0.00038334,4]
[313059022,1706700646514,-343.06270534,0.00038334,4]
[313059023,1706700646524,-344.74329012,0.00038334,4]
[313059025,1706700646533,-860.83950855,0.00038334,4]
[313059027,1706700646543,-219.17379438,0.00038335,4]
[313059029,1706700646552,-503.50773957,0.00038335,4]
[313059035,1706700646561,-585.93791638,0.00038335,4]
[313059036,1706700646742,-2303.1799647,0.00038335,4]
[313059037,1706700646752,-250.44389232,0.00038335,4]
[313059038,1706700646761,-500.0,0.00038335,4]
[313059039,1706700646771,-289.54850282,0.00038335,4]
[313059040,1706700646780,-1887.99243745,0.00038335,4]
[313059041,1706700646792,-299.33406665,0.00038335,4]
[313059042,1706700646813,-5310.60649811,0.00038335,4]
[313059043,1706700646823,-1291.9173814,0.00038344,4]
[313059044,1706700646832,-3700.04112529,0.00038344,4]
[313059045,1706700646842,-190.69656832,0.00038345,4]
[313059046,1706700646851,-1436.07110058,0.00038345,2]
[313059047,1706700646860,-15050.55361985,0.00038345,2]
[313059048,1706700646872,-686.0,0.00038345,2]
[313059049,1706700646884,-7351.74604712,0.00038345,2]
[313059071,1706701036969,-280.08406835,0.00024007,2]
[313059072,1706701036990,-1053.13917845,0.00024008,2]
[313059073,1706701037011,-385.65675102,0.00024008,2]
[313059074,1706701037032,-165.30239559,0.00024009,2]
[313059075,1706701037054,-153.29516161,0.00024011,2]
[313059076,1706701037074,-24410.55467101,0.00024014,2]
[313059077,1706701037095,-2976.2579,0.00024015,2]
[313059078,1706701037116,-300.0,0.00024112,2]
[313059079,1706701037137,-150.0,0.00024112,2]
[313059080,1706701037158,-2133.70987397,0.00024117,2]
[313059082,1706701180602,-2605.00032238,0.0002411,2]
[313059083,1706701180623,-1094.99967762,0.0002411,2]
[313059085,1706701224927,-2482.12405516,0.00024109,2]
[313059086,1706701224948,-1288.87594484,0.0002411,2]
[313059087,1706701285827,-421.03960501,0.00024108,2]
[313059088,1706701285852,-970.53281602,0.00024108,2]
[313059089,1706701285873,-608.42757897,0.00024109,2]
[313059165,1706701832313,-426.89975225,0.00024006,2]
[313059166,1706701832371,-2055.22430291,0.00024006,2]
[313059167,1706701832380,-1000.0,0.00024007,2]
[313059168,1706701832390,-970.53281602,0.00024008,2]
[313059169,1706701832400,-153.29516149,0.00024009,2]
[313059170,1706701832410,-2976.2579,0.00024009,2]
[313059171,1706701832420,-194.5104,0.00024009,2]
[313059172,1706701832429,-300.0,0.00024108,2]
[313059173,1706701832439,-150.0,0.00024108,2]
[313059174,1706701832448,-18888.6922571,0.00024109,2]
[313059191,1706701832699,-128.98367508,0.00024109,2]
[313059193,1706701832708,-350.0,0.00025,3]
[313059195,1706701832718,-153.29516149,0.00025443,2]
[313059198,1706701832727,-12.59789433,0.00026027,20]
[313059200,1706701832744,-137.40210567,0.00026027,20]
[313059202,1706701832753,-122.31688764,0.00026876,2]
[313059205,1706701832772,-30.97827385,0.00026876,2]
[313059207,1706701832781,-153.29516149,0.0002831,2]
[313059209,1706701832792,-1974.02,0.00029267,2]
[313059211,1706701832802,-153.29516149,0.00029744,2]
[313059213,1706701832813,-273.91781365,0.0003,2]
[313059215,1706701832822,-153.29516149,0.00031177,2]
[313059217,1706701832832,-153.29516149,0.00032611,2]
[313059219,1706701832841,-154.87087628,0.00032979,2]
[313059221,1706701832853,-137.36912372,0.00032979,2]
[313059223,1706701832863,-153.29516149,0.00034044,2]
[313059224,1706701832872,-150.0,0.00034548,10]
[313059225,1706701832881,-1790.32530899,0.00034749,2]
[313059226,1706701832901,-7780.0,0.00034749,2]
[313059233,1706701838441,-970.53281602,0.00024005,2]
[313059234,1706701838451,-14329.67469101,0.00034749,2]
[313059235,1706701838461,-625.90252472,0.0003476,4]
[313059236,1706701838471,-250.0,0.00034771,111]
[313059237,1706701838480,-2000.0,0.00034803,2]
[313059238,1706701838489,-300.0,0.00034974,2]
[313059239,1706701838498,-5068.49353582,0.00035075,6]
[313059240,1706701838507,-3966.74173797,0.00035075,6]
[313059241,1706701838517,-292.24,0.00035243,2]
[313059242,1706701838527,-592.0,0.00035371,2]
[313059243,1706701838536,-153.29516149,0.00035478,2]
[313059244,1706701838547,-150.0,0.00035692,2]
[313059245,1706701838556,-237.82,0.0003576,2]
[313059246,1706701838567,-250.0,0.00035769,2]
[313059247,1706701838577,-200.0,0.00035771,2]
[313059248,1706701838586,-210.13,0.00035904,2]
[313059249,1706701838596,-408.0,0.00035923,2]
[313059250,1706701838607,-625.90252472,0.00035937,4]
[313059251,1706701838616,-279.791,0.00036037,2]
[313059252,1706701838625,-1358.0,0.00036037,2]
[313059253,1706701838634,-947.0,0.00036037,2]
[313059254,1706701838643,-1860.0,0.00036037,2]
[313059255,1706701838653,-838.0,0.00036037,2]
[313059256,1706701838662,-2865.0,0.00036037,2]
[313059258,1706701838672,-1223.0,0.00036037,2]
[313059260,1706701838681,-707.791,0.00036037,2]
[313059262,1706701838691,-219.258,0.00036037,2]
[313059264,1706701838699,-1306.796,0.00036037,2]
[313059266,1706701838709,-427.0,0.00036037,2]
[313059267,1706701838718,-1979.228,0.00036037,2]
[313059269,1706701838727,-998.0,0.00036037,2]
[313059271,1706701838736,-167.725,0.00036037,2]
[313059273,1706701838746,-1138.0,0.00036037,2]
[313059275,1706701838756,-996.621,0.00036037,2]
[313059277,1706701838765,-320.0,0.00036037,2]
[313059279,1706701838774,-2702.958,0.00036037,2]
[313059281,1706701838783,-257.162,0.00036037,2]
[313059283,1706701838792,-2279.0,0.00036037,2]
[313059285,1706701838802,-19758.0,0.00036037,2]
[313059287,1706701838810,-1031.0,0.00036037,2]
[313059289,1706701838819,-1000.0,0.000362,2]
[313059291,1706701838828,-250.0,0.00036242,2]
[313059293,1706701838838,-698.74823004,0.00036809,4]
[313059295,1706701838847,-153.29516149,0.00036912,2]
[313059297,1706701838857,-292.24,0.00037507,2]
[313059299,1706701838866,-150.0,0.00037884,2]
[313059301,1706701838876,-150.0,0.00037884,2]
[313059304,1706701838885,-176.76,0.00037904,2]
[313059306,1706701838895,-2511.0,0.00038,2]
[313059307,1706701838904,-153.11,0.00038,3]
[313059309,1706701838913,-2216.0002,0.00038145,2]
[313059311,1706701838923,-230.13025193,0.00038242,4]
[313059313,1706701838932,-2537.8175,0.00038243,2]
[313059315,1706701838941,-2500.0,0.00038244,2]
[313059316,1706701838950,-2622.3598964,0.00038244,4]
[313059317,1706701838959,-533.14935492,0.00038244,4]
[313059318,1706701838968,-396.65773098,0.00038245,8]
[313059319,1706701838977,-1435.20563191,0.000383,7]
[313059320,1706701838985,-4300.68765065,0.00038335,10]
[313059321,1706701838994,-155.95201911,0.00038343,4]
[313059322,1706701839004,-346.13075499,0.00038343,4]
[313059323,1706701839013,-870.44734362,0.00038343,2]
[313059324,1706701839022,-5445.7964682,0.00038343,4]
[313059325,1706701839031,-3722.74140742,0.00038343,4]
[313059327,1706701839041,-4381.71420151,0.00038343,4]
[313059329,1706701839050,-37575.26149539,0.00038343,4]
[313059331,1706701839060,-156.26816477,0.00038343,4]
[313059333,1706701839069,-177.91292476,0.00038343,4]
[313059335,1706701839078,-1392.35167659,0.00038343,3]
[313059337,1706701839087,-155.0,0.00038343,2]
[313059339,1706701839097,-338.23470755,0.00038343,4]
[313059341,1706701839106,-166.62449921,0.00038343,4]
[313059343,1706701839115,-7395.88259413,0.00038343,4]
[313059345,1706701839124,-1053.31016262,0.00038343,4]
[313059347,1706701839133,-2605.00032238,0.00038343,4]
[313059349,1706701839143,-527.52418272,0.00038343,4]
[313059351,1706701839151,-849.834067,0.00038344,4]
[313059353,1706701839161,-2337.1607316,0.00038344,2]
[313059355,1706701839170,-20227.37277768,0.00038344,4]
[313059358,1706701839182,-3613.84489398,0.00038344,4]
[313059360,1706701839193,-250.0,0.00038344,4]
[313059362,1706701839205,-6225.13482894,0.00038344,4]
[313059364,1706701839214,-32774.86517106,0.00038345,2]
[313059367,1706701839231,-1150.84489934,0.00038345,2]
[313059369,1706701839242,-690.84238113,0.00038345,2]
[313059371,1706701839255,-440.472419,0.00038345,2]
[313059524,1706701840916,-500.0,0.00037904,2]
[313059525,1706701840926,-97.60997935,0.00038345,2]
[313059588,1706701841642,-150.0,0.00036438,2]
[313059590,1706701841651,-102456.46252368,0.00038345,2]
[313059592,1706701841661,-153.29516149,0.00038345,2]
[313059594,1706701841670,-11181.7878917,0.00038346,10]
[313059596,1706701841679,-78489.3192724,0.00038346,3]
[313059598,1706701841688,-234.6532055,0.00038356,5]
[313059600,1706701841697,-264.5166843,0.00038356,5]
[313059601,1706701841707,-500.0,0.00038356,5]
[313059603,1706701841716,-329.72105171,0.00038356,5]
[313059606,1706701841725,-500.0,0.00038356,5]
[313059608,1706701841736,-500.0,0.00038356,5]
[313059609,1706701841745,-500.0,0.00038356,5]
[313059612,1706701841755,-500.0,0.00038356,5]
[313059614,1706701841764,-630.93341735,0.00038356,5]
[313059616,1706701841773,-155.26617408,0.00038356,5]
[313059618,1706701841783,-500.0,0.00038356,5]
[313059619,1706701841793,-500.0,0.00038356,2]
[313059621,1706701841803,-500.0,0.00038356,5]
[313059623,1706701841812,-500.0,0.00038356,5]
[313059625,1706701841821,-444.84049127,0.00038356,5]
[313059627,1706701841831,-540.95,0.00038356,5]
[313059629,1706701841840,-540.95,0.00038356,5]
[313059631,1706701841848,-540.95,0.00038356,5]
[313059633,1706701841858,-500.0,0.00038356,5]
[313059635,1706701841867,-355.04570587,0.00038356,5]
[313059637,1706701841876,-202.73328955,0.00038356,5]
[313059639,1706701841886,-500.0,0.00038356,5]
[313059641,1706701841895,-500.0,0.00038356,5]
[313059643,1706701841904,-285.28590113,0.00038356,5]
[313059645,1706701841913,-500.0,0.00038356,5]
[313059647,1706701841922,-500.0,0.00038356,5]
[313059649,1706701841931,-441.25549601,0.00038356,5]
[313059651,1706701841940,-500.0,0.00038356,5]
[313059653,1706701841950,-602.63861529,0.00038356,5]
[313059655,1706701841959,-511.59349784,0.00038356,5]
[313059657,1706701841968,-500.0,0.00038356,5]
[313059659,1706701841978,-202.2502855,0.00038356,5]
[313059661,1706701841987,-500.0,0.00038356,5]
[313059663,1706701841996,-388.88487887,0.00038356,5]
[313059665,1706701842006,-231.07760463,0.00038356,5]
[313059667,1706701842015,-435.64287516,0.00038356,5]
[313059669,1706701842025,-500.0,0.00038356,5]
[313059671,1706701842034,-500.0,0.00038356,5]
[313059674,1706701842048,-446.44914233,0.00038356,5]
[313059675,1706701842057,-500.0,0.00038356,5]
[313059678,1706701842066,-1000.0,0.00038356,7]
[313059680,1706701842075,-500.0,0.00038356,5]
[313059682,1706701842084,-681.48,0.00038356,5]
[313059684,1706701842094,-500.0,0.00038356,5]
[313059686,1706701842103,-500.0,0.00038356,5]
[313059688,1706701842113,-500.0,0.00038356,5]
[313059690,1706701842123,-500.0,0.00038356,5]
[313059691,1706701842132,-523.43552081,0.00038356,5]
[313059694,1706701842142,-718.84,0.00038356,7]
[313059695,1706701842151,-500.0,0.00038356,5]
[313059698,1706701842161,-677.63,0.00038356,2]
[313059700,1706701842170,-500.0,0.00038356,5]
[313059702,1706701842179,-879.92,0.00038356,5]
[313059703,1706701842188,-500.0,0.00038356,5]
[313059705,1706701842198,-500.0,0.00038356,5]
[313059707,1706701842207,-500.0,0.00038356,5]
[313059709,1706701842216,-500.0,0.00038356,5]
[313059712,1706701842226,-500.0,0.00038356,5]
[313059714,1706701842236,-500.0,0.00038356,5]
[313059715,1706701842245,-500.0,0.00038356,5]
[313059717,1706701842255,-500.0,0.00038356,5]
[313059719,1706701842264,-500.0,0.00038356,5]
[313059721,1706701842275,-500.0,0.00038356,5]
[313059743,1706701842471,-500.0,0.00038356,5]
[313059745,1706701842481,-500.0,0.00038356,5]
[313059747,1706701842491,-500.0,0.00038356,5]
[313059749,1706701842501,-500.0,0.00038356,5]
[313059751,1706701842510,-500.0,0.00038356,5]
[313059753,1706701842520,-500.0,0.00038356,5]
[313059755,1706701842529,-500.0,0.00038356,5]
[313059757,1706701842538,-593.61,0.00038356,5]
[313059759,1706701842550,-500.0,0.00038356,5]
[313059761,1706701842560,-500.0,0.00038356,2]
[313059763,1706701842571,-500.0,0.00038356,5]
[313059765,1706701842580,-621.15032386,0.00038356,5]
[313059767,1706701842590,-500.0,0.00038356,5]
[313059769,1706701842599,-500.0,0.00038356,5]
[313059771,1706701842610,-398.91258158,0.00038356,2]
[313059773,1706701842618,-500.0,0.00038356,5]
[313059775,1706701842628,-500.0,0.00038356,5]
[313059777,1706701842637,-1186.93,0.00038356,5]
[313059779,1706701842648,-500.0,0.00038356,5]
[313059781,1706701842657,-500.0,0.00038356,5]
[313059783,1706701842667,-500.0,0.00038356,5]
[313059785,1706701842676,-500.0,0.00038356,5]
[313059786,1706701842685,-500.0,0.00038356,5]
[313059789,1706701842695,-500.0,0.00038356,5]
[313059790,1706701842704,-500.0,0.00038356,5]
[313059792,1706701842714,-500.0,0.00038356,5]
[313059795,1706701842723,-614.14,0.00038356,5]
[313059797,1706701842733,-500.0,0.00038356,5]
[313059799,1706701842743,-500.0,0.00038356,5]
[313059801,1706701842752,-500.0,0.00038356,5]
[313059803,1706701842761,-1575.88,0.00038356,5]
[313059805,1706701842771,-500.0,0.00038356,5]
[313059807,1706701842780,-500.0,0.00038356,2]
[313059809,1706701842789,-500.0,0.00038356,5]
[313059810,1706701842799,-500.0,0.00038356,5]
[313059813,1706701842809,-573.75,0.00038356,5]
[313059815,1706701842819,-500.0,0.00038356,5]
[313059816,1706701842827,-526.33,0.00038356,5]
[313059819,1706701842837,-500.0,0.00038356,5]
[313059821,1706701842846,-500.0,0.00038356,2]
[313059822,1706701842856,-500.0,0.00038356,5]
[313059825,1706701842865,-500.0,0.00038356,5]
[313059827,1706701842875,-500.0,0.00038356,5]
[313059829,1706701842884,-153.77492168,0.00038356,5]
[313059831,1706701842894,-500.0,0.00038356,5]
[313059832,1706701842903,-569.02142842,0.00038356,5]
[313059834,1706701842913,-625.0,0.00038356,5]
[313059835,1706701842922,-625.0,0.00038356,5]
[313059836,1706701842931,-1000.0,0.00038356,120]
[313059837,1706701842941,-500.0,0.00038356,2]
[313059838,1706701842951,-476.92827703,0.00038356,5]
[313059839,1706701842961,-614.5,0.00038356,5]
[313059840,1706701842971,-500.0,0.00038356,5]
[313059841,1706701842980,-500.0,0.00038356,5]
[313059842,1706701842990,-500.0,0.00038356,5]
[313059844,1706701842999,-500.0,0.00038356,5]
[313059846,1706701843009,-500.0,0.00038356,5]
[313059848,1706701843018,-564.43111869,0.00038356,5]
[313059850,1706701843028,-500.0,0.00038356,5]
[313059852,1706701843037,-338.68288348,0.00038356,5]
[313059854,1706701843047,-500.0,0.00038356,5]
[313059857,1706701843057,-585.08185541,0.00038356,5]
[313059860,1706701843066,-500.0,0.00038356,5]
[313059863,1706701843076,-500.0,0.00038356,5]
[313059866,1706701843085,-747.56,0.00038356,2]
[313059867,1706701843094,-500.0,0.00038356,5]
[313059868,1706701843103,-500.0,0.00038356,5]
[313059869,1706701843112,-500.0,0.00038356,5]
[313059870,1706701843122,-513.11,0.00038356,5]
[313059871,1706701843131,-947.3,0.00038356,5]
[313059872,1706701843141,-1568.01,0.00038356,5]
[313059873,1706701843150,-3188.5,0.00038356,5]
[313059874,1706701843159,-500.0,0.00038356,5]
[313059876,1706701843168,-597.84,0.00038356,5]
[313059877,1706701843178,-670.49,0.00038356,5]
[313059878,1706701843187,-500.0,0.00038356,5]
[313059879,1706701843196,-500.0,0.00038356,5]
[313059880,1706701843206,-958.96,0.00038356,5]
[313059881,1706701843215,-707.73,0.00038356,5]
[313059882,1706701843224,-500.0,0.00038356,5]
[313059883,1706701843234,-793.01,0.00038356,5]
[313059884,1706701843243,-500.0,0.00038356,5]
[313059886,1706701843253,-2993.71,0.00038356,5]
[313059890,1706701843262,-500.0,0.00038356,5]
[313059892,1706701843271,-558.23,0.00038356,5]
[313059897,1706701843280,-1661.26,0.00038356,5]
[313059898,1706701843290,-500.0,0.00038356,5]
[313059901,1706701843300,-718.07,0.00038356,5]
[313059904,1706701843309,-1165.93,0.00038356,5]
[313059907,1706701843318,-500.0,0.00038356,5]
[313059910,1706701843329,-2285.01,0.00038356,5]
[313059912,1706701843337,-500.0,0.00038356,5]
[313059914,1706701843347,-777.68,0.00038356,5]
[313059916,1706701843356,-500.0,0.00038356,5]
[313059918,1706701843366,-544.95,0.00038356,5]
[313059920,1706701843376,-500.0,0.00038356,5]
[313059922,1706701843385,-500.0,0.00038356,5]
[313059924,1706701843394,-918.29,0.00038356,5]
[313059926,1706701843403,-708.55,0.00038356,5]
[313059927,1706701843413,-766.97,0.00038356,5]
[313059928,1706701843422,-500.0,0.00038356,5]
[313059929,1706701843431,-500.0,0.00038356,5]
[313059930,1706701843441,-500.0,0.00038356,5]
[313059931,1706701843450,-552.95,0.00038356,5]
[313059932,1706701843459,-572.76,0.00038356,5]
[313059933,1706701843468,-500.49,0.00038356,5]
[313059934,1706701843478,-500.0,0.00038356,5]
[313059935,1706701843487,-895.23,0.00038356,5]
[313059936,1706701843497,-500.0,0.00038356,5]
[313059937,1706701843506,-500.0,0.00038356,5]
[313059939,1706701843515,-500.0,0.00038356,5]
[313059941,1706701843524,-690.83,0.00038356,5]
[313059943,1706701843533,-648.69,0.00038356,5]
[313059944,1706701843543,-500.0,0.00038356,5]
[313059946,1706701843552,-500.0,0.00038356,5]
[313059955,1706701843771,-500.0,0.00038356,5]
[313059956,1706701843780,-652.1,0.00038356,5]
[313059958,1706701843790,-1442.93,0.00038356,5]
[313059960,1706701843800,-500.0,0.00038356,5]
[313059963,1706701843809,-862.95,0.00038356,5]
[313059966,1706701843818,-534.3,0.00038356,5]
[313059968,1706701843827,-500.0,0.00038356,5]
[313059969,1706701843836,-1015.05,0.00038356,5]
[313059970,1706701843845,-500.0,0.00038356,5]
[313059971,1706701843854,-500.0,0.00038356,5]
[313059972,1706701843863,-500.0,0.00038356,5]
[313059973,1706701843872,-869.54,0.00038356,5]
[313059974,1706701843881,-500.0,0.00038356,5]
[313059975,1706701843890,-500.0,0.00038356,5]
[313059976,1706701843899,-3731.13,0.00038356,5]
[313059977,1706701843909,-641.43,0.00038356,5]
[313059978,1706701843918,-3526.38,0.00038356,5]
[313059979,1706701843927,-570.23009793,0.00038356,5]
[313059980,1706701843937,-655.62,0.00038356,5]
[313059981,1706701843946,-500.0,0.00038356,5]
[313059982,1706701843955,-1372.19,0.00038356,5]
[313059983,1706701843964,-1173.44,0.00038356,5]
[313059984,1706701843973,-587.14987948,0.00038356,5]
[313059985,1706701843982,-500.0,0.00038356,5]
[313059986,1706701843991,-725.06,0.00038356,5]
[313059987,1706701844000,-591.06,0.00038356,5]
[313059988,1706701844009,-500.0,0.00038356,5]
[313059989,1706701844017,-500.0,0.00038356,5]
[313059990,1706701844026,-675.71,0.00038356,5]
[313059991,1706701844035,-514.43964659,0.00038356,5]
[313059992,1706701844045,-664.52,0.00038356,5]
[313059993,1706701844053,-500.0,0.00038356,5]
[313059994,1706701844063,-500.0,0.00038356,5]
[313059995,1706701844071,-566.58,0.00038356,5]
[313059996,1706701844080,-628.47,0.00038356,5]
[313059997,1706701844089,-3626.68,0.00038356,5]
[313059998,1706701844098,-21366.85,0.00038356,5]
[313059999,1706701844107,-945.11,0.00038356,5]
[313060000,1706701844116,-500.0,0.00038356,5]
[313060001,1706701844125,-544.02,0.00038356,5]
[313060002,1706701844134,-500.0,0.00038356,5]
[313060003,1706701844143,-500.0,0.00038356,5]
[313060004,1706701844152,-1351.96,0.00038356,5]
[313060005,1706701844161,-521.57250915,0.00038356,5]
[313060006,1706701844170,-1774.93,0.00038356,5]
[313060007,1706701844179,-500.0,0.00038356,5]
[313060008,1706701844187,-1161.91,0.00038356,5]
[313060009,1706701844196,-518.48672757,0.00038356,5]
[313060010,1706701844208,-500.0,0.00038356,5]
[313060011,1706701844217,-500.0,0.00038356,5]
[313060012,1706701844226,-500.0,0.00038356,5]
[313060013,1706701844236,-500.0,0.00038356,5]
[313060014,1706701844245,-500.0,0.00038356,5]
[313060015,1706701844254,-1134.87,0.00038356,5]
[313060016,1706701844263,-978.54,0.00038356,5]
[313060017,1706701844272,-725.6,0.00038356,5]
[313060018,1706701844281,-766.34,0.00038356,5]
[313060019,1706701844292,-659.69,0.00038356,5]
[313060020,1706701844300,-702.83,0.00038356,2]
[313060021,1706701844310,-500.0,0.00038356,5]
[313060022,1706701844319,-512.99883692,0.00038356,5]
[313060023,1706701844329,-500.0,0.00038356,5]
[313060024,1706701844338,-500.0,0.00038356,5]
[313060025,1706701844347,-883.1463892,0.00038356,5]
[313060026,1706701844605,-485.1936108,0.00038356,5]
[313060027,1706701844615,-500.0,0.00038356,5]
[313060028,1706701844624,-826.43942454,0.00038356,5]
[313060029,1706701844638,-884.04057546,0.00038356,5]
[313060030,1706701844647,-599.64,0.00038356,5]
[313060031,1706701844656,-817.84,0.00038356,5]
[313060032,1706701844665,-370.47564661,0.00038356,5]
[313060033,1706701844677,-145.52720056,0.00038356,5]
[313060034,1706701844686,-257.94292643,0.00038356,5]
[313060035,1706701844697,-242.05707357,0.00038356,5]
[313060036,1706701844705,-182.76505742,0.00038356,5]
[313060037,1706701844724,-317.23494258,0.00038356,5]
[313060038,1706701844733,-500.0,0.00038356,5]
[313060039,1706701844742,-529.531491,0.00038356,5]
[313060040,1706701844753,-61.468509,0.00038356,5]
[313060041,1706701844762,-743.58,0.00038356,5]
[313060042,1706701844771,-500.0,0.00038356,5]
[313060043,1706701844780,-1798.673741,0.00038356,5]